bitfinex/quotes_ETHUSD_20240530
["timestamp","ask_amount","ask_price","bid_price","bid_amount"]
[1717080934775,2.65515,3766.3,3766.1,0.03051686]
[1717080935113,2.65515,3766.3,3766.2,0.03045925]
[1717080935298,3.2292624,3766.3,3765.4,7.23528506]
[1717080935501,2.65515,3766.3,3765.4,7.23528506]
[1717080935702,2.65537,3766.0,3765.5,0.03086259]
[1717080936775,2.65537,3766.0,3765.6,0.30777791]
[1717080937315,2.65537,3766.0,3765.7,0.03074734]
[1717080941409,2.65509,3766.4,3765.8,0.3063676]
[1717080941617,2.920599,3766.4,3765.8,0.3063676]
[1717080941818,2.65481,3766.8,3765.9,2.382]
[1717080941976,0.57402707,3766.7,3766.0,0.29931715]
[1717080942190,2.89306408,3767.7,3766.1,1.19483619]
[1717080942394,2.4991,3767.8,3766.1,1.19483619]
[1717080942395,2.65454,3767.2,3766.2,7.22048129]
[1717080942926,2.65454,3767.2,3766.3,0.03040164]
[1717080942927,0.57395977,3767.1,3766.3,0.03040164]
[1717080943227,2.65454,3767.2,3766.4,0.29367815]
[1717080943384,2.919994,3767.2,3766.4,0.32988235]
[1717080943826,2.65454,3767.2,3766.4,0.32988235]
[1717080945217,2.65454,3767.2,3766.4,2.98492235]
[1717080945415,2.65425,3767.6,3766.5,0.55]
[1717080945616,1.30084891,3767.5,3766.6,0.28804034]
[1717080945817,2.65425,3767.6,3766.7,3.20481]
[1717080946015,2.65425,3767.6,3766.8,0.28804034]
[1717080946539,2.65425,3767.6,3766.9,0.03573802]
[1717080946836,2.65425,3767.6,3766.9,0.32236911]
[1717080947138,2.65398,3768.0,3767.0,2.61853109]
[1717080947335,0.57386867,3767.9,3767.0,37.61853109]
[1717080947510,2.65398,3768.0,3767.1,0.03559981]
[1717080947711,2.919378,3768.0,3767.2,0.28240373]
[1717080947908,2.919378,3768.0,3767.3,0.03546162]
[1717080949834,2.919378,3768.0,3767.3,0.31645638]
[1717080949835,2.65398,3768.0,3767.3,0.31645638]
[1717080950006,2.65398,3768.0,3767.3,0.28099476]
[1717080950208,2.65398,3768.0,3767.4,0.28099476]
[1717080951205,2.65369,3768.4,3767.4,0.28099476]
[1717080951407,2.65369,3768.4,3767.5,0.03532344]
[1717080951724,2.65369,3768.4,3767.6,0.27676832]
[1717080951921,2.65369,3768.4,3767.7,0.03909476]
[1717080952107,2.65369,3768.4,3767.7,0.31445441]
[1717080953850,2.65388,3768.1,3767.7,0.31445441]
[1717080956850,2.65362,3768.5,3767.8,0.27747268]
[1717080957011,2.65362,3768.5,3767.8,0.31649069]
[1717080957456,2.65362,3768.5,3767.8,0.27747268]
[1717080961722,2.65351,3768.6,3767.8,0.27747268]
[1717080961929,2.65351,3768.6,3767.9,0.86935881]
[1717080962131,2.65351,3768.6,3768.0,0.27254254]
[1717080972143,2.65371,3768.4,3767.9,0.31935881]
[1717080972382,2.65371,3768.4,3767.6,6.92891746]
[1717080972383,2.116,3768.7,3767.6,6.92891746]
[1717080972537,3.12838585,3768.6,3767.6,7.20498143]
[1717080972732,0.5737372,3768.5,3767.6,7.20498143]
[1717080972937,0.0663478,3768.4,3767.6,7.20498143]
[1717080973189,2.65396,3768.0,3767.6,7.20498143]
[1717080974360,2.65396,3768.0,3767.0,2.65463]
[1717080974361,2.65414,3767.7,3767.1,6.92891746]
[1717080974537,2.65414,3767.7,3767.2,0.28451732]
[1717080974750,2.65414,3767.7,3767.2,0.34257851]
[1717080975139,0.57386678,3767.6,3767.2,0.34257851]
[1717080975340,2.65429,3767.5,3767.2,0.34257851]
[1717080975842,2.65429,3767.5,3767.2,0.05806119]
[1717080976036,2.65429,3767.5,3766.7,26.55891746]
[1717080976356,2.65429,3767.5,3767.3,0.04966803]
[1717080976739,2.65429,3767.5,3767.3,0.05794603]
[1717080977163,2.65429,3767.5,3766.8,0.288745]
[1717080977689,2.4912,3768.2,3766.9,0.0584067]
[1717080977888,1.6106093,3769.3,3767.0,3.27150373]
[1717080977889,0.57386835,3768.1,3767.0,3.27150373]
[1717080978106,2.65374,3768.3,3767.2,2.65448]
[1717080978263,2.65374,3768.3,3767.3,0.82676832]
[1717080978264,0.57386835,3768.2,3767.3,0.82676832]
[1717080978447,2.65374,3768.3,3767.3,0.88471435]
[1717080978663,2.65374,3768.3,3767.4,0.98428763]
[1717080978860,2.65399,3768.0,3767.4,0.27817706]
[1717080980762,2.65399,3768.0,3767.5,0.28029031]
[1717080980965,2.65399,3768.0,3767.4,0.28029031]
[1717080981560,0.57379841,3767.9,3767.4,0.28029031]
[1717080981874,2.65409,3767.8,3766.8,3.0]
[1717080982076,2.4284,3768.3,3766.9,0.28522189]
[1717080982077,2.65432,3767.5,3766.9,0.28522189]
[1717080982376,2.65432,3767.5,3766.9,0.34362859]
[1717080983091,2.65459,3767.1,3766.9,0.0584067]
[1717080983275,2.65459,3767.1,3766.7,6.92891746]
[1717080983487,2.65459,3767.1,3767.0,0.04417464]
[1717080983695,2.65459,3767.1,3766.7,6.92891746]
[1717080983879,2.65459,3767.1,3767.0,0.04417464]
[1717080984204,2.65459,3767.1,3766.7,6.92891746]
[1717080984205,3.22854636,3767.1,3766.7,6.92891746]
[1717080984378,2.65459,3767.1,3767.0,0.04417464]
[1717080984767,2.65459,3767.1,3766.7,6.92891746]
[1717080985012,2.65459,3767.1,3767.0,0.03926635]
[1717080985219,2.65459,3767.1,3766.7,6.92891746]
[1717080985364,2.65459,3767.1,3766.8,0.04434741]
[1717080985569,2.65459,3767.1,3767.0,0.04417464]
[1717080985768,2.65459,3767.1,3766.9,0.05058402]
[1717080985970,2.65459,3767.1,3767.0,0.04417464]
[1717080986432,2.65482,3766.8,3766.3,7.22400525]
[1717080986711,2.65482,3766.8,3766.4,0.84015438]
[1717080987121,2.65482,3766.8,3766.2,2.3554]
[1717080987414,2.65482,3766.8,3765.8,9.26131746]
[1717080987565,2.65502,3766.5,3765.9,1.52615386]
[1717080992716,2.65502,3766.5,3766.0,0.04503865]
[1717080992882,2.65502,3766.5,3766.0,0.34576574]
[1717080993867,2.6552,3766.2,3766.0,0.04503865]
[1717080994184,2.92735754,3766.2,3765.8,6.92891746]
[1717080994384,2.92735754,3766.2,3763.7,0.2247684]
[1717080994385,2.92735754,3766.2,3766.1,0.03596178]
[1717080994595,2.65556,3765.7,3765.2,6.92891746]
[1717080994919,2.65556,3765.7,3765.3,0.03073878]
[1717080995513,2.65556,3765.7,3765.4,0.03068115]
[1717080995664,2.65556,3765.7,3765.2,0.30848309]
[1717080995870,2.65556,3765.7,3765.5,0.03062351]
[1717080996068,2.65556,3765.7,3765.2,0.5887814]
[1717080996325,7.3,3768.5,3765.6,0.3404594]
[1717080996326,2.65525,3766.2,3765.6,0.3404594]
[1717080996528,2.65525,3766.2,3765.6,0.30989352]
[1717080996722,2.65525,3766.2,3765.7,0.03328173]
[1717080996870,2.65525,3766.2,3765.7,0.33823909]
[1717080997588,2.65547,3765.8,3765.7,0.03328173]
[1717080997796,2.65547,3765.8,3765.2,6.92891746]
[1717080998012,2.6557,3765.5,3765.2,6.92891746]
[1717080998213,2.6557,3765.5,3765.3,0.03073878]
[1717080998601,2.6557,3765.5,3765.4,0.03090391]
[1717080998810,2.6557,3765.5,3765.2,6.92891746]
[1717080999106,2.6557,3765.5,3765.3,0.0311083]
[1717080999336,2.65541,3765.9,3765.3,3.30891717]
[1717080999504,2.3498,3767.0,3765.4,0.34376525]
[1717080999704,0.57413702,3766.8,3765.5,0.55]
[1717080999916,5.3498,3767.0,3765.6,0.30072709]
[1717080999917,0.57413702,3766.9,3765.6,0.30072709]
[1717081000234,0.06637974,3766.8,3765.7,0.55]
[1717081000450,3.64051676,3766.8,3765.8,0.30072709]
[1717081000590,1.25705526,3766.7,3765.8,0.33145212]
[1717081001040,2.65514,3766.3,3765.8,0.33145212]
[1717081001333,2.65514,3766.3,3765.8,0.03072503]
[1717081001334,2.6554,3765.9,3765.8,0.03072503]
[1717081001829,2.6554,3765.9,3765.1,19.35891746]
[1717081002029,2.6554,3765.9,3765.8,0.03072503]
[1717081002191,2.6554,3765.9,3765.2,2.17117175]
[1717081002391,2.65562,3765.6,3765.3,0.03101318]
[1717081002592,2.65562,3765.6,3765.1,19.67022148]
[1717081002830,2.65562,3765.6,3765.2,0.03107082]
[1717081003142,2.65562,3765.6,3765.1,19.67022148]
[1717081003324,2.65562,3765.6,3765.3,0.03101318]
[1717081003523,2.65562,3765.6,3765.1,19.67022148]
[1717081003731,2.65562,3765.6,3765.4,0.03095554]
[1717081003937,2.65562,3765.6,3765.1,21.87252363]
[1717081004133,2.65562,3765.6,3765.5,0.03089791]
[1717081004744,2.65562,3765.6,3765.1,6.92891746]
[1717081004947,2.65562,3765.6,3765.5,0.03107183]
[1717081005447,2.65562,3765.6,3765.1,6.92891746]
[1717081005652,2.65562,3765.6,3765.5,0.03107183]
[1717081005949,2.65562,3765.6,3765.1,8.17050912]
[1717081006169,2.65562,3765.6,3765.5,0.03107183]
[1717081006371,2.65562,3765.6,3765.1,8.17050912]
[1717081006671,2.65562,3765.6,3765.2,0.31341991]
[1717081006881,2.65536,3766.0,3765.3,0.55]
[1717081007063,2.65536,3766.0,3765.4,0.3063676]
[1717081007274,2.65536,3766.0,3765.4,0.33749706]
[1717081007575,2.65511,3766.4,3765.6,2.3205]
[1717081007871,2.65511,3766.4,3765.7,0.88310727]
[1717081009174,2.65484,3766.8,3765.7,0.88310727]
[1717081009376,0.265484,3766.7,3765.7,0.88310727]
[1717081009582,2.65484,3766.8,3765.8,2.65544]
[1717081009779,2.65484,3766.8,3765.7,0.88310727]
[1717081009780,2.65455,3767.2,3766.1,2.65526]
[1717081009932,2.65455,3767.2,3766.2,0.64138731]
[1717081010133,2.65455,3767.2,3766.2,0.32433045]
[1717081010668,2.65455,3767.2,3766.3,5.56287]
[1717081010837,2.65455,3767.2,3766.4,0.29367815]
[1717081011038,2.65455,3767.2,3766.5,0.03292421]
[1717081011339,2.65455,3767.2,3766.5,0.32519279]
[1717081011738,2.65455,3767.2,3766.6,0.29226858]
[1717081012103,2.65464,3767.0,3766.7,0.03278669]
[1717081012234,2.55027511,3766.9,3766.1,6.92891746]
[1717081012581,0.57401821,3766.8,3766.2,0.03310681]
[1717081012737,0.64039611,3766.8,3766.2,0.03310681]
[1717081012939,2.655,3766.5,3766.2,0.03310681]
[1717081015512,2.655,3766.5,3765.6,6.92891746]
[1717081015828,2.655,3766.5,3766.3,0.03304397]
[1717081015985,2.655,3766.5,3765.7,1.81200294]
[1717081016175,2.655,3766.5,3766.4,0.03301365]
[1717081016382,2.655,3766.5,3765.7,1.81200294]
[1717081016778,2.655,3766.5,3765.8,0.03055929]
[1717081017085,2.655,3766.5,3765.9,0.30213711]
[1717081017306,2.655,3766.5,3765.9,0.33541166]
[1717081018966,4.77065,3767.0,3765.9,2.99078166]
[1717081019174,0.57400964,3766.9,3766.1,2.3979]
[1717081019371,0.57400964,3766.9,3766.2,0.84720239]
[1717081019606,0.57400964,3766.9,3766.2,0.88029728]
[1717081019923,0.57400964,3766.9,3766.2,1.47365401]
[1717081020420,0.57400964,3766.9,3766.2,0.88029728]
[1717081020421,0.57396306,3766.9,3766.2,0.88029728]
[1717081020572,2.65504,3766.5,3766.2,0.03309489]
[1717081020975,2.65504,3766.5,3765.4,4.96902]
[1717081020976,0.57406192,3766.4,3765.4,4.96902]
[1717081021267,0.57406192,3766.4,3765.7,1.49334094]
[1717081021386,0.57406192,3766.4,3765.7,1.52395242]
[1717081021586,2.65504,3766.5,3765.7,0.33415867]
[1717081021915,2.65522,3766.2,3765.7,0.33415867]
[1717081022100,2.65522,3766.2,3765.7,0.03061148]
[1717081024231,2.65544,3765.9,3765.7,0.03061148]
[1717081024612,0.265522,3766.2,3765.2,19.35891746]
[1717081024613,2.65568,3765.6,3765.2,19.35891746]
[1717081024797,2.65568,3765.6,3764.9,2.3708]
[1717081025149,2.65568,3765.6,3765.0,0.3148306]
[1717081025691,2.65568,3765.6,3765.1,0.55]
[1717081025948,3.0,3766.5,3765.1,0.55]
[1717081025949,2.65538,3766.0,3765.2,0.63698297]
[1717081026082,2.65538,3766.0,3765.3,0.55]
[1717081026282,2.65538,3766.0,3765.4,0.3091883]
[1717081028125,2.65538,3766.0,3765.5,0.55]
[1717081028328,2.65538,3766.0,3765.6,0.30777791]
[1717081029109,2.6551,3766.4,3765.6,0.30777791]
[1717081029314,2.116,3766.1,3764.9,6.92891746]
[1717081029534,2.116,3766.1,3765.0,0.31130402]
[1717081029535,2.65552,3765.8,3765.0,0.31130402]
[1717081031064,5.116,3766.6,3764.9,6.92891746]
[1717081031065,2.3178,3766.0,3764.9,6.92891746]
[1717081031371,2.6558,3765.4,3764.9,6.92891746]
[1717081031538,2.6558,3765.4,3764.5,37.65638]
[1717081031739,2.6558,3765.4,3764.6,0.31906311]
[1717081035130,2.3994,3766.4,3764.9,0.31835764]
[1717081035329,0.57417726,3766.3,3765.1,2.3615]
[1717081035530,0.57417726,3766.6,3765.2,0.85143209]
[1717081035734,0.57417726,3766.6,3765.3,0.94085397]
[1717081035987,0.57417726,3766.6,3765.4,35.85495736]
[1717081036646,0.57417726,3766.6,3765.5,2.65567]
[1717081036974,2.65489,3766.7,3765.6,0.85354719]
[1717081037175,2.65489,3766.7,3765.7,0.35092172]
[1717081037379,2.65489,3766.7,3765.8,0.85143209]
[1717081037584,2.65489,3766.7,3765.8,0.88237722]
[1717081037735,2.65489,3766.7,3765.9,2.4163]
[1717081037936,2.65455,3767.2,3766.0,0.30002211]
[1717081038175,0.57397006,3767.1,3766.1,0.59526196]
[1717081038349,2.65455,3767.2,3766.2,0.29508779]
[1717081038678,2.65455,3767.2,3766.2,0.32580246]
[1717081039079,2.65455,3767.2,3766.2,5.35680111]
[1717081040204,2.65455,3767.2,3766.3,0.55]
[1717081040483,2.65417,3767.7,3766.5,2.65498]
[1717081040780,0.57389497,3767.6,3766.6,0.288745]
[1717081040953,2.65417,3767.7,3766.6,0.288745]
[1717081040954,2.65417,3767.7,3766.6,35.32474575]
[1717081041588,2.65417,3767.7,3766.6,0.32474575]
[1717081041756,2.65433,3767.5,3766.6,0.32474575]
[1717081045367,2.65433,3767.5,3766.6,2.4291]
[1717081046947,2.65433,3767.5,3766.7,35.0]
[1717081047147,2.65404,3767.9,3766.9,2.65469]
[1717081047372,2.65404,3767.9,3767.0,2.64560763]
[1717081047546,2.65404,3767.9,3766.9,2.65469]
[1717081048897,2.65404,3767.9,3767.1,2.65451]
[1717081049114,2.65404,3767.9,3767.0,0.55]
[1717081049115,2.275,3769.2,3768.0,2.6539]
[1717081049707,4.391,3769.2,3768.0,2.6539]
[1717081050216,0.06633888,3769.1,3768.0,2.6539]
[1717081050784,2.65342,3768.8,3767.9,6.92891746]
[1717081050963,2.65355,3768.6,3767.9,6.92891746]
[1717081051195,3.13713965,3768.6,3767.9,6.92891746]
[1717081051616,2.65374,3768.3,3767.9,6.92891746]
[1717081051793,2.65374,3768.3,3767.3,6.92891746]
[1717081052783,2.65389,3768.1,3767.3,6.92891746]
[1717081053033,0.48358965,3768.6,3767.3,6.92891746]
[1717081053034,2.65402,3767.9,3767.3,6.92891746]
[1717081053239,2.65416,3767.7,3767.3,6.92891746]
[1717081054842,2.65391,3768.1,3767.3,6.92891746]
[1717081054994,2.919301,3768.1,3767.3,6.92891746]
[1717081056002,2.65391,3768.1,3767.3,6.92891746]
[1717081056227,2.65391,3768.1,3767.4,0.55]
[1717081056640,0.48358965,3768.6,3767.6,2.6542]
[1717081056804,2.116,3769.2,3767.7,0.55]
[1717081057134,2.6536,3768.5,3767.7,6.92891746]
[1717081057816,2.6538,3768.2,3767.7,6.92891746]
[1717081058020,2.6538,3768.2,3767.2,9.58336746]
[1717081058230,2.6538,3768.2,3767.3,0.55]
[1717081060536,2.6538,3768.2,3767.4,2.4357]
[1717081060740,2.6538,3768.2,3767.5,0.55]
[1717081061036,2.65356,3768.6,3767.5,4.51616675]
[1717081061236,2.65356,3768.6,3767.5,3.20426]
[1717081062513,2.65372,3768.3,3767.5,0.55]
[1717081065056,2.65372,3768.3,3767.6,2.6542]
[1717081065264,2.65347,3768.7,3767.7,0.55]
[1717081065469,2.918817,3768.7,3767.7,0.55]
[1717081066265,2.65347,3768.7,3767.7,0.55]
[1717081069145,2.65347,3768.7,3767.8,2.65402]
[1717081069374,2.65347,3768.7,3767.9,0.55]
[1717081071380,2.65364,3768.4,3767.9,0.55]
[1717081071579,0.265364,3768.3,3767.6,0.55]
[1717081071881,2.65364,3768.4,3767.6,0.55]
[1717081074751,2.116,3768.8,3767.2,9.58339746]
[1717081074979,0.57371727,3768.7,3767.3,2.99332975]
[1717081075562,3.57371727,3768.8,3767.3,2.99332975]
[1717081075901,1.280417,3768.7,3767.3,2.99332975]
[1717081076093,2.6538,3768.2,3767.3,2.99332975]
[1717081077198,0.57375756,3768.1,3767.3,2.99332975]
[1717081077613,2.65396,3768.0,3767.3,2.99332975]
[1717081078796,2.65396,3768.0,3767.3,0.55]
[1717081079207,2.65408,3767.8,3767.2,6.92891746]
[1717081079704,0.57378706,3767.7,3767.2,6.92891746]
[1717081079859,2.65408,3767.8,3767.2,6.92891746]
[1717081080261,2.65408,3767.8,3767.2,9.13027821]
[1717081080602,2.65385,3768.2,3767.3,2.4781]
[1717081080787,0.57378421,3768.1,3767.4,0.55]
[1717081082877,2.65393,3768.0,3767.4,0.55]
[1717081084222,2.65393,3768.0,3767.4,1.81115175]
[1717081085301,0.49328,3768.9,3767.4,4.46549175]
[1717081085302,2.65369,3768.4,3767.4,4.46549175]
[1717081085479,0.57371202,3768.3,3767.4,4.46549175]
[1717081087485,2.65369,3768.4,3767.6,2.65414]
[1717081087685,2.65369,3768.4,3767.7,0.99652918]
[1717081088685,2.65343,3768.8,3767.7,0.99652918]
[1717081088898,0.57370317,3768.7,3767.7,0.99652918]
[1717081089213,2.65352,3768.6,3767.8,0.36506692]
[1717081089386,2.65352,3768.6,3767.9,0.55]
[1717081091016,0.57368575,3768.5,3767.9,0.55]
[1717081093004,2.65352,3768.6,3767.9,3.20399]
[1717081093309,2.65352,3768.6,3768.0,0.13615961]
[1717081093482,2.65352,3768.6,3768.1,0.55]
[1717081094624,2.65329,3769.0,3768.1,3.028]
[1717081094913,2.6534,3768.8,3768.1,3.028]
[1717081095213,0.5736549,3768.7,3768.1,3.028]
[1717081095569,2.6534,3768.8,3768.1,3.028]
[1717081096403,0.57365862,3768.7,3768.1,3.028]
[1717081097487,2.6534,3768.8,3768.1,3.028]
[1717081098135,1.92744936,3768.7,3768.1,3.028]
[1717081099137,1.92744936,3768.7,3768.1,3.60981496]
[1717081102414,2.6536,3768.5,3767.6,6.92891746]
[1717081102911,2.50136319,3768.4,3767.6,6.92891746]
[1717081103123,1.92763879,3768.3,3767.6,6.92891746]
[1717081103410,2.6536,3768.5,3767.6,7.62180921]
[1717081103614,2.65373,3768.3,3767.7,0.55]
[1717081104367,3.53773,3768.3,3767.7,0.55]
[1717081105231,2.65373,3768.3,3767.7,0.55]
[1717081106059,3.53773,3768.3,3767.7,0.55]
[1717081106562,2.65373,3768.3,3767.7,0.55]
[1717081109019,2.122,3769.1,3767.8,2.65405]
[1717081109223,2.50118638,3769.0,3767.9,2.9678]
[1717081109423,5.50118638,3768.9,3767.9,2.9678]
[1717081109662,2.50118638,3768.8,3767.9,2.9678]
[1717081109957,2.50118638,3768.7,3768.1,2.65384]
[1717081110157,2.6533,3768.9,3768.2,0.55]
[1717081110158,1.92751636,3768.6,3768.2,0.55]
[1717081110362,2.6533,3768.9,3768.2,0.55]
[1717081110535,2.50101334,3768.8,3768.2,0.55]
[1717081110868,1.92737849,3768.7,3768.2,1.24780479]
[1717081111035,2.65306,3769.3,3768.3,2.65371]
[1717081111237,2.50095631,3769.2,3768.4,0.55]
[1717081111473,5.15410631,3769.1,3768.4,0.55]
[1717081111718,2.50095631,3769.0,3768.4,0.55]
[1717081111862,1.92733405,3768.9,3768.4,0.55]
[1717081112043,1.92733405,3768.8,3768.4,0.55]
[1717081112245,2.65315,3769.1,3768.4,0.55]
[1717081112441,2.50088718,3769.0,3768.4,0.94015148]
[1717081112641,2.50088718,3768.9,3768.4,0.55]
[1717081112845,2.65315,3769.1,3768.4,0.55]
[1717081113190,2.50085036,3769.0,3768.4,0.55]
[1717081113332,2.50085036,3768.9,3768.4,0.55]
[1717081113531,2.65315,3769.1,3768.4,0.55]
[1717081113869,2.50083675,3769.0,3768.4,0.55]
[1717081114044,2.50083675,3768.9,3768.4,0.55]
[1717081114244,2.65315,3769.1,3768.4,0.55]
[1717081114451,1.92724353,3769.0,3768.4,0.55]
[1717081114782,0.57359507,3768.9,3768.4,0.55]
[1717081115263,0.57359507,3769.0,3768.4,0.55]
[1717081115451,1.92724333,3768.9,3768.4,0.55]
[1717081115889,2.65315,3769.1,3768.4,0.55]
[1717081116097,2.50083009,3769.0,3768.4,0.55]
[1717081116387,2.50082992,3768.9,3768.4,0.55]
[1717081116677,2.65315,3769.1,3768.4,0.55]
[1717081116986,2.50083192,3769.0,3768.4,0.55]
[1717081117135,0.57359375,3768.9,3768.4,0.55]
[1717081117347,0.57359375,3769.0,3768.4,0.55]
[1717081118557,1.92724346,3768.9,3768.4,0.55]
[1717081119039,0.512165,3769.1,3768.4,0.55]
[1717081119273,1.92724253,3769.0,3768.4,0.55]
[1717081119472,2.65287,3769.5,3768.5,2.65355]
[1717081119806,2.50077314,3769.4,3768.6,0.55]
[1717081119969,2.65287,3769.5,3768.6,0.55]
[1717081119970,3.01613745,3769.3,3768.6,0.55]
[1717081120173,2.50077314,3769.2,3768.6,0.55]
[1717081120429,2.50077314,3769.1,3768.6,0.55]
[1717081120626,2.75085045,3769.0,3768.6,0.55]
[1717081120785,2.65287,3769.5,3768.6,0.55]
[1717081121152,2.5008397,3769.4,3768.6,0.55]
[1717081121305,2.5008397,3769.3,3768.6,0.55]
[1717081121630,2.5008397,3769.2,3768.6,0.55]
[1717081121937,2.5008397,3769.1,3768.6,0.55]
[1717081122138,2.65303,3769.3,3768.6,0.55]
[1717081122278,2.50074916,3769.2,3768.6,0.55]
[1717081122479,2.50074916,3769.1,3768.6,0.55]
[1717081122680,0.54190662,3769.2,3768.6,0.55]
[1717081122919,1.92719679,3769.1,3768.6,0.55]
[1717081123313,2.65303,3769.3,3768.6,0.55]
[1717081123484,2.5007715,3769.2,3768.6,0.55]
[1717081123829,2.5007715,3769.1,3768.6,0.55]
[1717081124023,0.51538015,3769.1,3768.3,0.55]
[1717081124527,0.57357449,3769.2,3768.5,2.4749]
[1717081124737,0.57357449,3769.6,3768.6,0.55]
[1717081124947,1.92708973,3769.5,3768.6,0.55]
[1717081125089,0.57357449,3769.4,3768.6,0.55]
[1717081125516,1.13343994,3769.6,3768.6,0.55]
[1717081125729,1.92705194,3769.5,3768.6,0.55]
[1717081125932,0.57357449,3769.4,3768.7,2.65342]
[1717081126241,0.57357449,3769.4,3768.8,0.55]
[1717081126390,1.92711919,3769.3,3768.8,0.55]
[1717081126591,0.55986545,3769.6,3768.8,0.55]
[1717081126804,1.92711641,3769.5,3768.8,0.55]
[1717081127154,0.57355583,3769.4,3768.8,0.55]
[1717081127310,1.92711641,3769.3,3768.8,0.55]
[1717081127494,1.92711641,3769.3,3768.9,2.65328]
[1717081127690,1.92711641,3769.3,3769.0,0.55]
[1717081127894,2.65278,3769.7,3769.0,0.55]
[1717081128121,1.92696013,3769.6,3769.0,0.55]
[1717081128492,0.57352984,3769.5,3769.0,0.55]
[1717081128691,1.92696013,3769.4,3769.0,0.55]
[1717081129196,2.65278,3769.7,3769.0,1.433]
[1717081129400,1.92705538,3769.6,3769.0,1.841628]
[1717081129592,1.92705538,3769.6,3769.1,2.3822]
[1717081129896,2.65252,3770.0,3769.5,0.883]
[1717081130106,0.5734887,3769.9,3769.6,0.55]
[1717081130731,0.883,3769.8,3769.3,0.55]
[1717081130961,0.883,3769.5,3769.2,0.55]
[1717081131112,0.883,3769.5,3768.9,0.55]
[1717081132544,2.65275,3769.7,3768.9,0.55]
[1717081132721,0.883,3769.6,3768.9,0.55]
[1717081133038,0.883,3769.4,3768.9,0.55]
[1717081133392,0.883,3769.6,3768.9,0.55]
[1717081135582,0.883,3769.4,3768.9,0.55]
[1717081136587,0.883,3769.6,3768.9,0.55]
[1717081136787,0.883,3769.4,3768.9,0.55]
[1717081137872,0.883,3769.6,3768.9,0.55]
[1717081139091,2.65248,3770.1,3769.0,2.65321]
[1717081139315,0.883,3769.9,3769.1,0.55]
[1717081139863,0.883,3769.7,3769.1,0.55]
[1717081140942,0.57350671,3770.0,3768.8,6.92891746]
[1717081140943,2.2876,3769.6,3768.8,6.92891746]
[1717081141141,0.883,3768.9,3768.8,6.92891746]
[1717081141262,2.65315,3769.2,3768.2,2.65377]
[1717081141468,0.883,3768.7,3768.2,2.65377]
[1717081142018,0.883,3768.9,3768.2,2.65377]
[1717081142520,2.65315,3769.2,3768.2,2.65377]
[1717081142670,2.65315,3769.2,3768.3,0.55]
[1717081143218,2.65328,3769.0,3768.3,0.55]
[1717081143417,2.65328,3769.0,3768.2,0.55]
[1717081144822,0.06633733,3768.9,3768.2,0.55]
[1717081144986,2.65338,3768.8,3768.1,0.55]
[1717081145500,5.12118,3768.8,3768.1,0.55]
[1717081145888,0.06634271,3768.7,3768.1,0.55]
[1717081146996,0.06634271,3768.7,3766.8,3.20672228]
[1717081146997,0.61162892,3768.7,3767.3,6.92891746]
[1717081147184,5.66628507,3768.7,3767.3,6.92891746]
[1717081147910,2.6535,3768.6,3767.4,2.65432]
[1717081148117,3.46690851,3768.6,3767.4,2.65432]
[1717081148671,3.46690851,3768.6,3767.5,0.55]
[1717081149013,2.65364,3768.4,3767.5,0.55]
[1717081149198,0.81340851,3768.6,3767.6,2.65419]
[1717081149440,0.81340851,3768.6,3767.7,0.55]
[1717081149799,8.31972507,3768.7,3767.7,0.55]
[1717081149800,1.16009336,3768.5,3767.7,0.55]
[1717081150205,3.81372336,3768.5,3767.7,0.55]
[1717081158230,2.65336,3768.9,3767.9,2.4274]
[1717081158381,2.65336,3768.9,3768.0,0.55]
[1717081158825,2.65336,3768.9,3768.0,3.20391]
[1717081159527,5.0394,3769.2,3768.0,4.45993275]
[1717081159684,0.57359198,3769.1,3768.0,1.80602275]
[1717081159887,2.65288,3769.5,3768.4,2.65358]
[1717081160086,2.65288,3769.5,3768.5,0.55]
[1717081160582,0.57354069,3769.4,3768.5,0.55]
[1717081160781,2.65302,3769.3,3768.5,0.55]
[1717081162430,0.884,3769.1,3768.5,0.55]
[1717081163130,2.65278,3769.7,3768.6,2.4773]
[1717081163336,0.884,3769.3,3768.7,1.118088]
[1717081164039,0.5735429,3769.6,3768.7,1.118088]
[1717081164220,0.884,3769.3,3768.7,1.118088]
[1717081164460,0.884,3769.3,3768.8,0.3595388]
[1717081164631,0.884,3769.3,3768.9,0.55]
[1717081167813,0.884,3769.1,3768.9,0.55]
[1717081168013,0.884,3769.1,3768.7,0.55]
[1717081171142,0.884,3768.9,3768.7,0.55]
[1717081171751,0.884,3768.9,3768.5,0.55]
[1717081172320,0.884,3768.7,3768.0,2.65386]
[1717081172523,0.884,3768.9,3768.4,2.4927]
[1717081173753,0.884,3769.1,3768.4,2.4927]
[1717081173951,2.65287,3769.5,3768.5,3.20354]
[1717081174253,0.884,3769.3,3768.5,3.718179]
[1717081176329,0.884,3769.1,3768.5,3.718179]
[1717081177235,0.884,3769.1,3768.6,0.6210879]
[1717081177433,0.884,3769.1,3768.7,0.55]
[1717081179083,0.884,3769.1,3768.6,0.55]
[1717081180967,0.884,3769.1,3768.5,0.55]
[1717081181547,0.884,3768.9,3768.5,0.55]
[1717081184051,0.884,3768.9,3768.3,0.55]
[1717081184388,3.53719,3769.1,3768.3,1.054476]
[1717081184963,0.884,3768.9,3768.3,0.55]
[1717081186682,2.65296,3769.4,3768.4,2.65362]
[1717081186984,0.884,3769.2,3768.5,0.55]
[1717081187394,0.884,3769.2,3768.5,0.870362]
[1717081188052,0.57354861,3769.3,3768.5,0.870362]
[1717081188251,0.57354861,3769.3,3768.6,2.3049]
[1717081188453,0.57354861,3769.3,3768.7,0.55]
[1717081190484,1.45754861,3769.3,3768.7,0.55]